fUSD/lending_fUSD_20250206
["ID","MTS","AMOUNT","RATE_DAILY","PERIOD"]
[351976330,1738866642230,-530.64,0.00016707,2]
[351976332,1738866642239,-500.0,0.00016707,2]
[351976333,1738866642248,-500.0,0.00016707,2]
[351976336,1738866642258,-500.0,0.00016707,2]
[351976338,1738866642268,-500.0,0.00016707,2]
[351976340,1738866642277,-500.0,0.00016707,2]
[351976342,1738866642287,-500.0,0.00016707,2]
[351976344,1738866642296,-500.0,0.00016707,2]
[351976346,1738866642306,-500.0,0.00016707,2]
[351976348,1738866642316,-500.0,0.00016707,2]
[351976350,1738866642325,-500.0,0.00016707,2]
[351976352,1738866642334,-500.0,0.00016707,2]
[351976354,1738866642343,-618.16,0.00016707,2]
[351976356,1738866642353,-578.91,0.00016707,2]
[351976358,1738866642363,-500.0,0.00016707,2]
[351976360,1738866642373,-500.0,0.00016707,2]
[351976362,1738866642382,-500.0,0.00016707,2]
[351976364,1738866642391,-500.0,0.00016707,2]
[351976366,1738866642401,-500.0,0.00016707,2]
[351976368,1738866642410,-500.0,0.00016707,2]
[351976370,1738866642420,-500.0,0.00016707,2]
[351976372,1738866642430,-500.0,0.00016707,2]
[351976374,1738866642439,-500.0,0.00016707,2]
[351976376,1738866642448,-500.0,0.00016707,2]
[351976378,1738866642457,-500.0,0.00016707,2]
[351976380,1738866642466,-500.0,0.00016707,2]
[351976382,1738866642475,-500.0,0.00016707,2]
[351976384,1738866642484,-500.0,0.00016707,2]
[351976386,1738866642495,-500.0,0.00016707,2]
[351976388,1738866642505,-500.0,0.00016707,2]
[351976390,1738866642517,-500.0,0.00016707,2]
[351976392,1738866642527,-500.0,0.00016707,2]
[351976394,1738866642536,-500.0,0.00016707,2]
[351976396,1738866642545,-500.0,0.00016707,2]
[351976398,1738866642555,-469.56,0.00016707,2]
[351976400,1738866642564,-500.0,0.00016707,2]
[351976402,1738866642574,-500.0,0.00016707,2]
[351976404,1738866642584,-500.0,0.00016707,2]
[351976406,1738866642593,-500.0,0.00016707,2]
[351976408,1738866642602,-500.0,0.00016707,2]
[351976410,1738866642612,-500.0,0.00016707,2]
[351976412,1738866642621,-500.0,0.00016707,2]
[351976414,1738866642631,-500.0,0.00016707,2]
[351976416,1738866642641,-1141.65,0.00016707,2]
[351976418,1738866642649,-500.0,0.00016707,2]
[351976420,1738866642659,-500.0,0.00016707,2]
[351976423,1738866642668,-500.0,0.00016707,2]
[351976424,1738866642678,-500.0,0.00016707,2]
[351976427,1738866642688,-500.0,0.00016707,2]
[351976428,1738866642697,-500.0,0.00016707,2]
[351976430,1738866642707,-500.0,0.00016707,2]
[351976433,1738866642717,-500.0,0.00016707,2]
[351976435,1738866642727,-399.95718677,0.00016707,2]
[351976437,1738866642736,-547.26,0.00016707,2]
[351976439,1738866642748,-500.0,0.00016707,2]
[351976441,1738866642758,-500.0,0.00016707,2]
[351976443,1738866642770,-500.0,0.00016707,2]
[351976445,1738866642780,-500.0,0.00016707,2]
[351976447,1738866642790,-500.0,0.00016707,2]
[351976449,1738866642799,-500.0,0.00016707,2]
[351976451,1738866642810,-500.0,0.00016707,2]
[351976453,1738866642819,-500.0,0.00016707,2]
[351976455,1738866642827,-500.0,0.00016707,2]
[351976457,1738866642837,-500.0,0.00016707,2]
[351976459,1738866642847,-500.0,0.00016707,2]
[351976460,1738866642857,-500.0,0.00016707,2]
[351976463,1738866642866,-500.0,0.00016707,2]
[351976465,1738866642876,-500.0,0.00016707,2]
[351976466,1738866642885,-500.0,0.00016707,2]
[351976468,1738866642895,-500.0,0.00016707,2]
[351976471,1738866642904,-500.0,0.00016707,2]
[351976472,1738866642913,-500.0,0.00016707,2]
[351976474,1738866642923,-500.0,0.00016707,2]
[351976476,1738866642932,-500.0,0.00016707,2]
[351976478,1738866642943,-500.0,0.00016707,2]
[351976482,1738866642952,-500.0,0.00016707,2]
[351976483,1738866642961,-500.0,0.00016707,2]
[351976485,1738866642971,-540.35,0.00016707,2]
[351976488,1738866642981,-500.0,0.00016707,2]
[351976490,1738866642992,-500.0,0.00016707,2]
[351976492,1738866643003,-500.0,0.00016707,2]
[351976495,1738866643012,-500.0,0.00016707,2]
[351976498,1738866643021,-500.0,0.00016707,2]
[351976500,1738866643033,-500.0,0.00016707,2]
[351976503,1738866643042,-630.24,0.00016707,2]
[351976507,1738866643052,-500.0,0.00016707,2]
[351976509,1738866643062,-500.0,0.00016707,2]
[351976513,1738866643071,-500.0,0.00016707,2]
[351976582,1738866643300,-500.0,0.00016707,2]
[351976585,1738866643310,-657.81,0.00016707,2]
[351976588,1738866643319,-500.0,0.00016707,2]
[351976591,1738866643329,-500.0,0.00016707,2]
[351976594,1738866643338,-500.0,0.00016707,2]
[351976596,1738866643347,-500.0,0.00016707,2]
[351976598,1738866643356,-726.72,0.00016707,2]
[351976600,1738866643365,-500.0,0.00016707,2]
[351976602,1738866643374,-500.0,0.00016707,2]
[351976604,1738866643383,-500.0,0.00016707,2]
[351976606,1738866643392,-500.0,0.00016707,2]
[351976608,1738866643401,-500.0,0.00016707,2]
[351976610,1738866643411,-500.0,0.00016707,2]
[351976612,1738866643420,-500.0,0.00016707,2]
[351976614,1738866643429,-502.89,0.00016707,2]
[351976616,1738866643438,-664.29,0.00016707,2]
[351976618,1738866643447,-847.16,0.00016707,2]
[351976620,1738866643456,-500.0,0.00016707,2]
[351976622,1738866643465,-500.0,0.00016707,2]
[351976624,1738866643475,-680.74,0.00016707,2]
[351976625,1738866643484,-500.0,0.00016707,2]
[351976628,1738866643494,-500.0,0.00016707,2]
[351976630,1738866643504,-500.0,0.00016707,2]
[351976632,1738866643513,-635.32,0.00016707,2]
[351976633,1738866643523,-500.0,0.00016707,2]
[351976636,1738866643532,-616.68,0.00016707,2]
[351976638,1738866643542,-942.54,0.00016707,2]
[351976639,1738866643551,-500.0,0.00016707,2]
[351976642,1738866643561,-514.53,0.00016707,2]
[351976644,1738866643577,-500.0,0.00016707,2]
[351976645,1738866643587,-1325.58,0.00016707,2]
[351976648,1738866643597,-616.62,0.00016707,2]
[351976652,1738866643606,-500.0,0.00016707,2]
[351976655,1738866643616,-584.06,0.00016707,2]
[351976657,1738866643626,-782.48,0.00016707,2]
[351976660,1738866643635,-952.27,0.00016707,2]
[351976662,1738866643645,-1279.03,0.00016707,2]
[351976664,1738866643655,-563.5,0.00016707,2]
[351976666,1738866643664,-500.0,0.00016707,2]
[351976668,1738866643674,-873.47,0.00016707,2]
[351976670,1738866643683,-500.0,0.00016707,2]
[351976672,1738866643691,-500.0,0.00016707,2]
[351976674,1738866643701,-811.69,0.00016707,2]
[351976676,1738866643710,-500.0,0.00016707,2]
[351976678,1738866643719,-2078.54,0.00016707,2]
[351976681,1738866643729,-500.0,0.00016707,2]
[351976683,1738866643738,-992.68,0.00016707,2]
[351976685,1738866643749,-833.73,0.00016707,2]
[351976687,1738866643763,-1083.2,0.00016707,2]
[351976689,1738866643777,-1317.18,0.00016707,2]
[351976691,1738866643787,-700.98,0.00016707,2]
[351976693,1738866643796,-2735.04,0.00016707,2]
[351976695,1738866643807,-500.0,0.00016707,2]
[351976697,1738866643816,-960.07,0.00016707,2]
[351976699,1738866643825,-589.9,0.00016707,2]
[351976701,1738866643834,-1424.1,0.00016707,2]
[351976703,1738866643844,-1138.61,0.00016707,2]
[351976705,1738866643853,-1582.06,0.00016707,2]
[351976707,1738866643863,-803.99,0.00016707,2]
[351976709,1738866643872,-722.34,0.00016707,2]
[351976711,1738866643882,-500.0,0.00016707,2]
[351976713,1738866643891,-500.0,0.00016707,2]
[351976715,1738866643901,-936.37,0.00016707,2]
[351976717,1738866643911,-1029.92,0.00016707,2]
[351976719,1738866643920,-664.0,0.00016707,2]
[351976721,1738866643929,-1836.69,0.00016707,2]
[351976723,1738866643939,-700.04,0.00016707,2]
[351976725,1738866643948,-500.0,0.00016707,2]
[351976727,1738866643958,-2524.54,0.00016707,2]
[351976729,1738866643968,-500.0,0.00016707,2]
[351976731,1738866643978,-500.0,0.00016707,2]
[351976733,1738866643987,-500.0,0.00016707,2]
[351976735,1738866643997,-500.0,0.00016707,2]
[351976737,1738866644007,-1649.27,0.00016707,2]
[351976739,1738866644016,-500.0,0.00016707,2]
[351976741,1738866644026,-843.75,0.00016707,2]
[351976743,1738866644035,-1110.4,0.00016707,2]
[351976745,1738866644044,-1353.54,0.00016707,2]
[351976747,1738866644054,-842.77,0.00016707,2]
[351976749,1738866644063,-908.69,0.00016707,2]
[351976751,1738866644072,-193.81610607,0.00016707,2]
[351976753,1738866644081,-587.68,0.00016707,2]
[351976755,1738866644091,-1257.73,0.00016707,2]
[351976757,1738866644103,-2630.17,0.00016707,2]
[351976759,1738866644112,-1528.25,0.00016707,2]
[351976761,1738866644121,-1242.52,0.00016707,2]
[351976763,1738866644131,-1407.68,0.00016707,2]
[351976765,1738866644141,-877.83,0.00016707,2]
[351976767,1738866644151,-1455.99,0.00016707,2]
[351976769,1738866644160,-500.0,0.00016707,2]
[351976771,1738866644170,-500.0,0.00016707,2]
[351976773,1738866644179,-1199.99,0.00016707,2]
[351976775,1738866644189,-500.0,0.00016707,2]
[351976777,1738866644198,-739.05,0.00016707,2]
[351976779,1738866644207,-500.0,0.00016708,2]
[351976781,1738866644219,-580.86,0.00016708,2]
[351976783,1738866644232,-500.0,0.00016708,2]
[351976785,1738866644242,-1233.51,0.00016708,2]
[351976787,1738866644251,-500.0,0.00016708,2]
[351976789,1738866644261,-500.0,0.00016708,2]
[351976791,1738866644270,-528.44,0.00016708,2]
[351976792,1738866644279,-500.0,0.00016708,2]
[351976795,1738866644288,-590.09,0.00016708,2]
[351976797,1738866644298,-851.34,0.0001671,2]
[351976799,1738866644308,-500.0,0.0001671,2]
[351976801,1738866644318,-500.0,0.00016711,2]
[351976803,1738866644327,-538.88680699,0.00016711,2]
[351976805,1738866644337,-500.0,0.00016711,2]
[351976807,1738866644346,-500.0,0.00016711,2]
[351976809,1738866644356,-500.0,0.00016711,2]
[351976811,1738866644366,-500.0,0.00016711,2]
[351976813,1738866644375,-500.0,0.00016711,2]
[351976815,1738866644384,-500.0,0.00016711,2]
[351976817,1738866644393,-500.0,0.00016711,2]
[351976819,1738866644402,-500.0,0.00016711,2]
[351976821,1738866644412,-629.41,0.00016712,2]
[351976823,1738866644422,-1212.13,0.00016712,2]
[351976825,1738866644431,-2191.68,0.00016712,2]
[351976827,1738866644441,-1150.67,0.00016712,2]
[351976829,1738866644450,-1194.7,0.00016712,2]
[351976830,1738866644459,-1670.96,0.00016712,2]
[351976832,1738866644468,-2394.38,0.00016712,2]
[351976834,1738866644478,-1909.88,0.00016712,2]
[351976837,1738866644495,-879.69,0.00016712,2]
[351976840,1738866644508,-589.11,0.00016712,2]
[351976842,1738866644518,-1406.63,0.00016712,2]
[351976844,1738866644528,-500.0,0.00016712,2]
[351976846,1738866644539,-1626.57,0.00016712,2]
[351976848,1738866644548,-1052.49,0.00016712,2]
[351976850,1738866644560,-2439.5,0.00016712,2]
[351976852,1738866644569,-1556.35,0.00016712,2]
[351976854,1738866644579,-1571.46,0.00016712,2]
[351976856,1738866644589,-500.0,0.00016712,2]
[351976858,1738866644599,-500.0,0.00016712,2]
[351976860,1738866644609,-500.0,0.00016712,2]
[351976862,1738866644619,-3154.44,0.00016712,2]
[351976864,1738866644629,-500.0,0.00016712,2]
[351976865,1738866644638,-1374.49,0.00016712,2]
[351976866,1738866644648,-781.28,0.00016712,2]
[351976867,1738866644657,-500.0,0.00016712,2]
[351976868,1738866644667,-962.38,0.00016712,2]
[351976869,1738866644677,-666.23,0.00016712,2]
[351976870,1738866644686,-500.0,0.00016712,2]
[351976871,1738866644695,-249.81415691,0.00016712,2]
[351976872,1738866644705,-876.98,0.00016712,2]
[351976873,1738866644714,-823.01,0.00016712,2]
[351976874,1738866644724,-752.31,0.00016712,2]
[351976875,1738866644733,-500.0,0.00016712,2]
[351976876,1738866644743,-1511.53,0.00016712,2]
[351976877,1738866644753,-150.0,0.00016751,2]
[351976878,1738866644768,-616.183,0.00016832,2]
[351976880,1738866644778,-300.0,0.00016842,2]
[351976882,1738866644788,-300.0,0.00016842,2]
[351976884,1738866644799,-215.83058964,0.00016842,2]
[351976886,1738866644809,-500.0,0.00016843,2]
[351976888,1738866644819,-500.0,0.00016843,2]
[351976890,1738866644829,-500.0,0.00016843,2]
[351976892,1738866644839,-500.0,0.00016843,2]
[351976894,1738866644850,-500.0,0.00016843,2]
[351976896,1738866644859,-564.54425038,0.00016843,2]
[351976898,1738866644869,-500.0,0.00016843,2]
[351976900,1738866644879,-500.0,0.00016843,2]
[351976902,1738866644888,-539.06,0.00016843,2]
[351976904,1738866644898,-500.0,0.00016843,2]
[351976906,1738866644907,-500.0,0.00016843,2]
[351976908,1738866644917,-500.0,0.00016843,2]
[351976910,1738866644926,-500.0,0.00016843,2]
[351976912,1738866644937,-500.0,0.00016843,2]
[351976914,1738866644946,-500.0,0.00016843,2]
[351976916,1738866644955,-569.46,0.00016843,2]
[351976918,1738866644965,-500.0,0.00016843,2]
[351976920,1738866644975,-500.0,0.00016843,2]
[351976922,1738866644984,-500.0,0.00016843,2]
[351976924,1738866644995,-500.0,0.00016843,2]
[351976927,1738866645006,-500.0,0.00016843,2]
[351976929,1738866645015,-569.12,0.00016843,2]
[351976930,1738866645025,-500.0,0.00016843,2]
[351976933,1738866645035,-500.0,0.00016843,2]
[351976934,1738866645045,-500.0,0.00016843,2]
[351976937,1738866645055,-500.0,0.00016843,2]
[351976939,1738866645064,-500.0,0.00016843,2]
[351976941,1738866645074,-500.0,0.00016843,2]
[351976942,1738866645084,-500.0,0.00016843,2]
[351976945,1738866645093,-500.0,0.00016843,2]
[351976947,1738866645103,-500.0,0.00016843,2]
[351976949,1738866645113,-500.0,0.00016843,2]
[351976950,1738866645123,-500.0,0.00016843,2]
[351976953,1738866645133,-500.0,0.00016843,2]
[351976954,1738866645143,-629.82,0.00016843,2]
[351976956,1738866645153,-500.0,0.00016843,2]
[351976958,1738866645163,-500.0,0.00016843,2]
[351976961,1738866645173,-500.0,0.00016843,2]
[351976963,1738866645183,-500.0,0.00016843,2]
[351976964,1738866645193,-500.0,0.00016843,2]
[351976967,1738866645203,-500.0,0.00016843,2]
[351976969,1738866645213,-622.06,0.00016843,2]
[351976971,1738866645223,-500.0,0.00016843,2]
[351976973,1738866645233,-500.0,0.00016843,2]
[351976975,1738866645247,-500.0,0.00016843,2]
[351976977,1738866645257,-500.0,0.00016843,2]
[351976979,1738866645268,-500.0,0.00016843,2]
[351976980,1738866645278,-589.26,0.00016843,2]
[351976983,1738866645288,-500.0,0.00016843,2]
[351976985,1738866645298,-388.92247442,0.00016843,2]
[351976987,1738866645309,-500.0,0.00016843,2]
[351976989,1738866645319,-604.48,0.00016843,2]
[351976991,1738866645328,-500.0,0.00016843,2]
[351976993,1738866645339,-500.0,0.00016843,2]
[351976995,1738866645349,-500.0,0.00016843,2]
[351976997,1738866645359,-539.5,0.00016843,2]
[351976999,1738866645370,-500.0,0.00016843,2]
[351977001,1738866645380,-500.0,0.00016843,2]
[351977003,1738866645390,-500.0,0.00016843,2]
[351977004,1738866645400,-500.0,0.00016843,2]
[351977006,1738866645409,-573.22355977,0.00016843,2]
[351977007,1738866645418,-500.0,0.00016843,2]
[351977009,1738866645428,-500.0,0.00016843,2]
[351977011,1738866645438,-500.0,0.00016843,2]
[351977013,1738866645448,-630.81,0.00016843,2]
[351977015,1738866645457,-187.01,0.00016843,2]
[351977017,1738866645467,-500.0,0.00016843,2]
[351977018,1738866645477,-500.0,0.00016843,2]
[351977020,1738866645487,-500.0,0.00016843,2]
[351977022,1738866645501,-530.46072396,0.00016843,2]
[351977024,1738866645511,-605.88,0.00016843,2]
[351977026,1738866645522,-500.0,0.00016843,2]
[351977028,1738866645533,-500.0,0.00016843,2]
[351977030,1738866645543,-500.0,0.00016843,2]
[351977032,1738866645553,-500.0,0.00016843,2]
[351977034,1738866645563,-500.0,0.00016843,2]
[351977036,1738866645573,-500.0,0.00016843,2]
[351977038,1738866645583,-500.0,0.00016843,2]
[351977040,1738866645594,-500.0,0.00016843,2]
[351977042,1738866645603,-500.0,0.00016843,2]
[351977044,1738866645613,-500.0,0.00016843,2]
[351977046,1738866645622,-500.0,0.00016843,2]
[351977048,1738866645632,-500.0,0.00016843,2]
[351977050,1738866645642,-500.0,0.00016843,2]
[351977051,1738866645652,-500.0,0.00016843,2]
[351977053,1738866645661,-500.0,0.00016843,2]
[351977055,1738866645672,-513.14172486,0.00016843,2]
[351977057,1738866645681,-500.0,0.00016843,2]
[351977067,1738866645772,-219.98763565,0.00016843,2]
[351977069,1738866645782,-500.0,0.00016843,2]
[351977071,1738866645792,-500.0,0.00016843,2]
[351977073,1738866645802,-500.0,0.00016843,2]
[351977074,1738866645811,-534.17158239,0.00016843,2]
[351977076,1738866645822,-186.59,0.00016843,2]
[351977078,1738866645832,-500.0,0.00016843,2]
[351977080,1738866645841,-500.0,0.00016843,2]
[351977082,1738866645851,-500.0,0.00016843,2]
[351977084,1738866645861,-500.0,0.00016843,2]
[351977086,1738866645870,-500.0,0.00016843,2]
[351977088,1738866645879,-500.0,0.00016843,2]
[351977090,1738866645889,-500.0,0.00016843,2]
[351977092,1738866645898,-500.0,0.00016843,2]
[351977094,1738866645907,-569.45418841,0.00016843,2]
[351977096,1738866645916,-500.0,0.00016843,2]
[351977098,1738866645925,-500.0,0.00016843,2]
[351977100,1738866645934,-500.0,0.00016843,2]
[351977102,1738866645943,-511.45,0.00016843,2]
[351977104,1738866645952,-500.0,0.00016843,2]
[351977106,1738866645961,-500.0,0.00016843,2]
[351977108,1738866645971,-500.0,0.00016843,2]
[351977110,1738866645983,-500.0,0.00016843,2]
[351977112,1738866645993,-500.0,0.00016843,2]
[351977114,1738866646002,-500.0,0.00016843,2]
[351977116,1738866646011,-500.0,0.00016843,2]
[351977118,1738866646020,-500.0,0.00016843,2]
[351977119,1738866646029,-328.22299756,0.00016843,2]
[351977122,1738866646039,-226.99,0.00016843,2]
[351977123,1738866646049,-500.0,0.00016843,2]
[351977125,1738866646059,-500.0,0.00016843,2]
[351977127,1738866646068,-500.0,0.00016843,2]
[351977129,1738866646077,-500.0,0.00016843,2]
[351977131,1738866646087,-500.0,0.00016843,2]
[351977133,1738866646096,-500.0,0.00016843,2]
[351977135,1738866646106,-500.0,0.00016843,2]
[351977137,1738866646115,-500.0,0.00016843,2]
[351977139,1738866646125,-500.0,0.00016843,2]
[351977141,1738866646134,-502.10140045,0.00016843,2]
[351977143,1738866646144,-592.64,0.00016843,2]
[351977146,1738866646154,-500.0,0.00016843,2]
[351977148,1738866646163,-500.0,0.00016843,2]
[351977150,1738866646173,-500.0,0.00016843,2]
[351977152,1738866646183,-500.0,0.00016843,2]
[351977154,1738866646192,-500.0,0.00016843,2]
[351977156,1738866646201,-500.0,0.00016843,2]
[351977158,1738866646211,-500.0,0.00016843,2]
[351977160,1738866646220,-500.0,0.00016843,2]
[351977162,1738866646230,-500.0,0.00016843,2]
[351977164,1738866646239,-500.0,0.00016843,2]
[351977166,1738866646250,-394.4,0.00016843,2]
[351977168,1738866646260,-500.0,0.00016843,2]
[351977170,1738866646270,-500.0,0.00016843,2]
[351977172,1738866646279,-500.0,0.00016843,2]
[351977174,1738866646289,-500.0,0.00016843,2]
[351977176,1738866646298,-500.0,0.00016843,2]
[351977178,1738866646307,-310.25,0.00016843,2]
[351977180,1738866646317,-500.0,0.00016843,2]
[351977182,1738866646326,-215.03,0.00016843,2]
[351977183,1738866646335,-500.0,0.00016843,2]
[351977185,1738866646344,-500.0,0.00016843,2]
[351977187,1738866646355,-500.0,0.00016843,2]
[351977189,1738866646364,-500.0,0.00016843,2]
[351977191,1738866646374,-500.0,0.00016843,2]
[351977193,1738866646383,-500.0,0.00016843,2]
[351977195,1738866646392,-500.0,0.00016843,2]
[351977197,1738866646402,-500.0,0.00016843,2]
[351977199,1738866646411,-500.0,0.00016843,2]
[351977201,1738866646421,-500.0,0.00016843,2]
[351977203,1738866646432,-500.0,0.00016843,2]
[351977205,1738866646442,-500.0,0.00016843,2]
[351977207,1738866646451,-500.0,0.00016843,2]
[351977209,1738866646460,-500.0,0.00016843,2]
[351977211,1738866646470,-500.0,0.00016843,2]
[351977213,1738866646479,-500.0,0.00016843,2]
[351977215,1738866646488,-657.4,0.00016843,2]
[351977217,1738866646499,-1028.51,0.00016843,2]
[351977219,1738866646508,-500.0,0.00016843,2]
[351977221,1738866646517,-500.0,0.00016843,2]
[351977223,1738866646527,-363.45000716,0.00016843,2]
[351977225,1738866646537,-557.23,0.00016843,2]
[351977227,1738866646546,-913.22,0.00016843,2]
[351977229,1738866646555,-500.0,0.00016843,2]
[351977231,1738866646565,-1460.61,0.00016843,2]
[351977233,1738866646575,-500.0,0.00016843,2]
[351977235,1738866646584,-942.03,0.00016843,2]
[351977237,1738866646594,-1349.04,0.00016843,2]
[351977239,1738866646603,-500.0,0.00016843,2]
[351977241,1738866646612,-2044.93,0.00016843,2]
[351977243,1738866646622,-1093.42,0.00016843,2]
[351977245,1738866646631,-1136.07,0.00016843,2]
[351977247,1738866646641,-199.169216,0.00016843,2]
[351977249,1738866646650,-500.0,0.00016843,2]
[351977251,1738866646660,-1372.49,0.00016843,2]
[351977253,1738866646670,-792.46,0.00016843,2]
[351977255,1738866646679,-500.0,0.00016843,2]
[351977257,1738866646689,-746.98,0.00016843,2]
[351977259,1738866646698,-1643.24,0.00016843,2]
[351977261,1738866646707,-1549.95,0.00016843,2]
[351977262,1738866646716,-583.9,0.00016843,2]
[351977265,1738866646726,-942.67,0.00016843,2]
[351977267,1738866646737,-500.0,0.00016843,2]
[351977268,1738866646748,-2419.41,0.00016843,2]
[351977271,1738866646763,-966.91,0.00016843,2]
[351977272,1738866646774,-808.88,0.00016843,2]
[351977274,1738866646784,-2612.15,0.00016843,2]
[351977276,1738866646794,-500.0,0.00016843,2]
[351977279,1738866646806,-204.110967,0.00016843,2]
[351977281,1738866646817,-500.0,0.00016843,2]
[351977282,1738866646827,-1149.7,0.00016843,2]
[351977284,1738866646838,-1041.66,0.00016843,2]
[351977287,1738866646850,-500.0,0.00016843,2]
[351977288,1738866647068,-1330.48,0.00016843,2]
[351977291,1738866647080,-1604.53,0.00016843,2]
[351977292,1738866647089,-531.94,0.00016843,2]
[351977294,1738866647098,-500.0,0.00016843,2]
[351977296,1738866647108,-500.0,0.00016843,2]
[351977299,1738866647117,-1401.73,0.00016843,2]
[351977301,1738866647127,-1589.88,0.00016843,2]
[351977303,1738866647136,-500.0,0.00016843,2]
[351977304,1738866647147,-500.0,0.00016843,2]
[351977306,1738866647156,-850.56,0.00016843,2]
[351977308,1738866647166,-500.0,0.00016843,2]
[351977310,1738866647175,-500.0,0.00016843,2]
[351977312,1738866647184,-1104.05,0.00016843,2]
[351977314,1738866647194,-5370.59,0.00016843,2]
[351977316,1738866647204,-500.0,0.00016843,2]
[351977318,1738866647213,-1453.98,0.00016843,2]
[351977320,1738866647223,-1194.2,0.00016843,2]
[351977322,1738866647232,-566.05,0.00016843,2]
[351977324,1738866647243,-1388.6,0.00016843,2]
[351977326,1738866647253,-1308.07,0.00016843,2]
[351977328,1738866647262,-500.0,0.00016843,2]
[351977330,1738866647272,-500.0,0.00016843,2]
[351977332,1738866647281,-1399.15,0.00016843,2]
[351977334,1738866647290,-300.0,0.00016843,2]
[351977336,1738866647299,-500.0,0.00016843,2]
[351977338,1738866647309,-500.0,0.00016843,2]
[351977340,1738866647318,-1254.63,0.00016843,2]
[351977342,1738866647327,-2225.02,0.00016843,2]
[351977344,1738866647335,-915.99,0.00016843,2]
[351977346,1738866647345,-500.0,0.00016843,2]
[351977348,1738866647354,-1226.05,0.00016843,2]
[351977350,1738866647363,-2612.35,0.00016843,2]
[351977352,1738866647373,-719.96,0.00016843,2]
[351977354,1738866647382,-500.0,0.00016843,2]
[351977356,1738866647391,-500.0,0.00016843,2]
[351977358,1738866647401,-2140.65,0.00016843,2]
[351977360,1738866647410,-1229.76,0.00016843,2]
[351977362,1738866647419,-1649.71,0.00016843,2]
[351977364,1738866647429,-3392.3,0.00016843,2]
[351977366,1738866647438,-500.0,0.00016843,2]
[351977367,1738866647448,-500.0,0.00016843,2]
[351977369,1738866647457,-500.0,0.00016843,2]
[351977371,1738866647467,-1000.0,0.00016843,2]
[351977373,1738866647476,-500.0,0.00016843,2]
[351977374,1738866647486,-500.0,0.00016843,2]
[351977375,1738866647497,-1017.33,0.00016843,2]
[351977376,1738866647507,-500.0,0.00016843,2]
[351977377,1738866647516,-500.0,0.00016843,2]
[351977378,1738866647526,-500.0,0.00016843,2]
[351977381,1738866647540,-1539.46,0.00016843,2]
[351977383,1738866647551,-1189.78,0.00016843,2]
[351977385,1738866647561,-500.0,0.00016843,2]
[351977387,1738866647570,-951.64,0.00016843,2]
[351977389,1738866647580,-500.0,0.00016843,2]
[351977391,1738866647589,-500.0,0.00016843,2]
[351977393,1738866647600,-2117.54,0.00016843,2]
[351977395,1738866647609,-300.0,0.00016843,2]
[351977397,1738866647619,-300.0,0.00016843,2]